[Event "Early-Titled-Tuesday-Blitz-March-26-2024"]
[Site "Chess.com"]
[Date "2024.03.26"]
[Round "3"]
[White "lagunanivaria"]
[Black "MatyChess1"]
[Result "1/2-1/2"]
[WhiteElo "2464"]
[BlackElo "2641"]
[TimeControl "180+1"]
[EndTime "8:30:34 PDT"]
[Termination "Game drawn by repetition"]

1. c3 {[%clk 0:03:00.9]} 1... Nf6 {[%clk 0:02:52.8]} 2. d4 {[%clk 0:03:00]} 2...
e6 {[%clk 0:02:53.4]} 3. Bf4 {[%clk 0:02:58.6]} 3... Be7 {[%clk 0:02:50.2]} 4.
Nd2 {[%clk 0:02:57.9]} 4... c5 {[%clk 0:02:44.6]} 5. Ngf3 {[%clk 0:02:57]} 5...
O-O {[%clk 0:02:36.6]} 6. e3 {[%clk 0:02:55.9]} 6... b6 {[%clk 0:02:35.6]} 7. h3
{[%clk 0:02:55.6]} 7... d6 {[%clk 0:02:34.9]} 8. Bd3 {[%clk 0:02:55.3]} 8... Ba6
{[%clk 0:02:35]} 9. Qe2 {[%clk 0:02:54.8]} 9... Qc8 {[%clk 0:02:27.1]} 10. O-O
{[%clk 0:02:51.6]} 10... Bxd3 {[%clk 0:02:23]} 11. Qxd3 {[%clk 0:02:51.5]} 11...
cxd4 {[%clk 0:02:15.4]} 12. cxd4 {[%clk 0:02:33.8]} 12... Qa6 {[%clk 0:02:10.4]}
13. Qxa6 {[%clk 0:02:32]} 13... Nxa6 {[%clk 0:02:11.3]} 14. Rfc1 {[%clk
0:02:32.1]} 14... Rfc8 {[%clk 0:02:03.8]} 15. a3 {[%clk 0:02:32.4]} 15... Kf8
{[%clk 0:02:02.4]} 16. Kf1 {[%clk 0:02:31.7]} 16... Ke8 {[%clk 0:02:02.5]} 17.
Ke2 {[%clk 0:02:31.9]} 17... Kd7 {[%clk 0:02:03.3]} 18. g4 {[%clk 0:02:22.6]}
18... b5 {[%clk 0:01:49.4]} 19. Ne1 {[%clk 0:02:12]} 19... h5 {[%clk 0:01:47.4]}
20. Bg5 {[%clk 0:01:54.2]} 20... hxg4 {[%clk 0:01:42.7]} 21. Bxf6 {[%clk
0:01:53.5]} 21... Bxf6 {[%clk 0:01:33.5]} 22. hxg4 {[%clk 0:01:53.4]} 22... Rh8
{[%clk 0:01:28.4]} 23. Nef3 {[%clk 0:01:53.3]} 23... Nc7 {[%clk 0:01:25.1]} 24.
Ne4 {[%clk 0:01:51.9]} 24... Be7 {[%clk 0:01:24.6]} 25. Nc3 {[%clk 0:01:50.7]}
25... a6 {[%clk 0:01:24.3]} 26. Rc2 {[%clk 0:01:51]} 26... Rhb8 {[%clk
0:01:16.5]} 27. Rac1 {[%clk 0:01:50.8]} 27... Rb7 {[%clk 0:01:17]} 28. Na2
{[%clk 0:01:49.8]} 28... a5 {[%clk 0:01:15.6]} 29. Nc3 {[%clk 0:01:46.3]} 29...
b4 {[%clk 0:01:12.9]} 30. Na4 {[%clk 0:01:42.9]} 30... Nd5 {[%clk 0:01:09]} 31.
Nd2 {[%clk 0:01:36.2]} 31... Rab8 {[%clk 0:01:05.9]} 32. axb4 {[%clk 0:01:33.7]}
32... Nxb4 {[%clk 0:01:02.3]} 33. Rc4 {[%clk 0:01:30.6]} 33... Nd5 {[%clk
0:01:01.4]} 34. b3 {[%clk 0:01:26.3]} 34... Bd8 {[%clk 0:00:57.6]} 35. Ra1
{[%clk 0:01:18.1]} 35... Be7 {[%clk 0:00:41]} 36. Nb2 {[%clk 0:01:17.4]} 36...
Bd8 {[%clk 0:00:39.7]} 37. Nd3 {[%clk 0:01:17.2]} 37... Nf6 {[%clk 0:00:35.6]}
38. f3 {[%clk 0:01:13.5]} 38... Bc7 {[%clk 0:00:33.4]} 39. Rh1 {[%clk
0:01:02.4]} 39... Rb5 {[%clk 0:00:23.3]} 40. Rhc1 {[%clk 0:01:00.2]} 40... R5b7
{[%clk 0:00:22.8]} 41. Rh1 {[%clk 0:00:59.2]} 41... Rb5 {[%clk 0:00:23]} 42. Nf2
{[%clk 0:00:38.2]} 42... d5 {[%clk 0:00:19.4]} 43. Rc2 {[%clk 0:00:37.9]} 43...
Bd6 {[%clk 0:00:19.5]} 44. Nd3 {[%clk 0:00:37.9]} 44... Ke7 {[%clk 0:00:18.5]}
45. Ra2 {[%clk 0:00:28.1]} 45... Nd7 {[%clk 0:00:18.3]} 46. Rc2 {[%clk
0:00:24.2]} 46... Nf6 {[%clk 0:00:18.2]} 47. g5 {[%clk 0:00:23.1]} 47... Nd7
{[%clk 0:00:18.1]} 48. Rh7 {[%clk 0:00:23.6]} 48... g6 {[%clk 0:00:18.1]} 49. f4
{[%clk 0:00:23]} 49... Kf8 {[%clk 0:00:16.4]} 50. Rh8+ {[%clk 0:00:22.3]} 50...
Ke7 {[%clk 0:00:16.5]} 51. Rh1 {[%clk 0:00:22.3]} 51... R8b7 {[%clk 0:00:15.5]}
52. Rh8 {[%clk 0:00:18.4]} 52... Rb8 {[%clk 0:00:15]} 53. Rxb8 {[%clk
0:00:17.6]} 53... Rxb8 {[%clk 0:00:15.9]} 54. Nf3 {[%clk 0:00:17.3]} 54... Rh8
{[%clk 0:00:15.1]} 55. Nf2 {[%clk 0:00:16.8]} 55... Rb8 {[%clk 0:00:15.2]} 56.
Nd2 {[%clk 0:00:16.8]} 56... Bb4 {[%clk 0:00:14.9]} 57. Nb1 {[%clk 0:00:14.4]}
57... Bd6 {[%clk 0:00:14.4]} 58. Nd2 {[%clk 0:00:14.1]} 58... Bb4 {[%clk
0:00:15]} 59. Nf3 {[%clk 0:00:14.6]} 59... Bd6 {[%clk 0:00:14.3]} 60. Rc3 {[%clk
0:00:15]} 60... Rb7 {[%clk 0:00:13.4]} 61. Nd3 {[%clk 0:00:13.6]} 61... Rb8
{[%clk 0:00:13.2]} 62. Nd2 {[%clk 0:00:12.9]} 62... Rh8 {[%clk 0:00:13.2]} 63.
Nf3 {[%clk 0:00:10.6]} 63... Rh1 {[%clk 0:00:13.9]} 64. Rc1 {[%clk 0:00:10.1]}
64... Rh3 {[%clk 0:00:13.4]} 65. Nf2 {[%clk 0:00:10.3]} 65... Rh8 {[%clk
0:00:13.5]} 66. Ra1 {[%clk 0:00:10.7]} 66... Bb4 {[%clk 0:00:13]} 67. Nd3 {[%clk
0:00:10.5]} 67... Rc8 {[%clk 0:00:11.5]} 68. Rc1 {[%clk 0:00:09.3]} 68... Rb8
{[%clk 0:00:10.6]} 69. Nfe5 {[%clk 0:00:09.7]} 69... Nxe5 {[%clk 0:00:08.5]} 70.
Nxe5 {[%clk 0:00:10.6]} 70... Rb7 {[%clk 0:00:07.9]} 71. Nd3 {[%clk 0:00:07.4]}
71... Bd6 {[%clk 0:00:07.9]} 72. Rc3 {[%clk 0:00:07.2]} 72... Kd7 {[%clk
0:00:08.4]} 73. Kd2 {[%clk 0:00:06.9]} 73... Rb8 {[%clk 0:00:08.7]} 74. Kc2
{[%clk 0:00:07]} 74... Rh8 {[%clk 0:00:08.8]} 75. Kd1 {[%clk 0:00:06.4]} 75...
Rh3 {[%clk 0:00:08.6]} 76. Nf2 {[%clk 0:00:06.1]} 76... Rf3 {[%clk 0:00:08.2]}
77. Ke2 {[%clk 0:00:06.5]} 77... Rg3 {[%clk 0:00:08.9]} 78. Rc1 {[%clk
0:00:06.7]} 78... Rg2 {[%clk 0:00:08.1]} 79. Kf3 {[%clk 0:00:07]} 79... Rh2
{[%clk 0:00:08]} 80. Rh1 {[%clk 0:00:07.3]} 80... Rxh1 {[%clk 0:00:08.5]} 81.
Nxh1 {[%clk 0:00:07.7]} 81... Kc6 {[%clk 0:00:09.3]} 82. Ke2 {[%clk 0:00:08.1]}
82... Kb5 {[%clk 0:00:09.9]} 83. Kd3 {[%clk 0:00:08.6]} 83... Kb4 {[%clk
0:00:10.2]} 84. Kc2 {[%clk 0:00:08.9]} 84... Ka3 {[%clk 0:00:10.7]} 85. Ng3
{[%clk 0:00:08.5]} 85... Kb4 {[%clk 0:00:08.9]} 86. Ne2 {[%clk 0:00:08.6]} 86...
Kb5 {[%clk 0:00:08.1]} 87. Nc1 {[%clk 0:00:08.1]} 87... Kc6 {[%clk 0:00:08.1]}
88. Nd3 {[%clk 0:00:08.5]} 88... Kb5 {[%clk 0:00:07]} 89. Kc3 {[%clk 0:00:09.1]}
89... Bb4+ {[%clk 0:00:05]} 90. Kc2 {[%clk 0:00:09.4]} 90... Bd6 {[%clk
0:00:04.9]} 91. Nf2 {[%clk 0:00:07.7]} 91... Kc6 {[%clk 0:00:04.7]} 92. Nd1
{[%clk 0:00:08.1]} 92... Bb4 {[%clk 0:00:03.9]} 93. Nb2 {[%clk 0:00:07.4]} 93...
Bd6 {[%clk 0:00:03]} 94. Nd3 {[%clk 0:00:07.5]} 94... Kb5 {[%clk 0:00:03.3]}
1/2-1/2

[Event "Early-Titled-Tuesday-Blitz-March-26-2024"]
[Site "Chess.com"]
[Date "2024.03.26"]
[Round "4"]
[White "DenLaz"]
[Black "baki83"]
[Result "1-0"]
[WhiteElo "3092"]
[BlackElo "2859"]
[TimeControl "180+1"]
[EndTime "8:33:03 PDT"]
[Termination "DenLaz won by resignation"]

1. d4 {[%clk 0:03:00.9]} 1... d6 {[%clk 0:02:59.4]} 2. Nf3 {[%clk 0:03:00.9]}
2... Nf6 {[%clk 0:02:59.9]} 3. c4 {[%clk 0:03:01.6]} 3... g6 {[%clk 0:03:00]} 4.
g3 {[%clk 0:03:02.3]} 4... Bf5 {[%clk 0:03:00.3]} 5. Bg2 {[%clk 0:03:01.2]} 5...
c6 {[%clk 0:03:00.8]} 6. O-O {[%clk 0:02:57]} 6... Bg7 {[%clk 0:03:01.1]} 7. Nc3
{[%clk 0:02:57.7]} 7... Ne4 {[%clk 0:02:59.8]} 8. Na4 {[%clk 0:02:58.3]} 8...
Nf6 {[%clk 0:02:49.8]} 9. Nh4 {[%clk 0:02:57.3]} 9... Bc8 {[%clk 0:02:49.7]} 10.
Nc3 {[%clk 0:02:56.3]} 10... O-O {[%clk 0:02:50.1]} 11. Nf3 {[%clk 0:02:56.8]}
11... Nbd7 {[%clk 0:02:50.1]} 12. e4 {[%clk 0:02:56.2]} 12... e5 {[%clk
0:02:50.5]} 13. h3 {[%clk 0:02:56.9]} 13... Qe7 {[%clk 0:02:50.9]} 14. Be3
{[%clk 0:02:55.8]} 14... a5 {[%clk 0:02:51.4]} 15. Qc2 {[%clk 0:02:53.1]} 15...
Re8 {[%clk 0:02:51.8]} 16. Rad1 {[%clk 0:02:52.7]} 16... h5 {[%clk 0:02:52.3]}
17. Rfe1 {[%clk 0:02:52.2]} 17... Nh7 {[%clk 0:02:49.4]} 18. b3 {[%clk
0:02:49.4]} 18... Ndf8 {[%clk 0:02:48.2]} 19. c5 {[%clk 0:02:48.2]} 19... dxc5
{[%clk 0:02:35.9]} 20. dxe5 {[%clk 0:02:48.4]} 20... Ne6 {[%clk 0:02:36.1]} 21.
Na4 {[%clk 0:02:47.5]} 21... Nhg5 {[%clk 0:02:31.3]} 22. Nxg5 {[%clk 0:02:46.1]}
22... Nxg5 {[%clk 0:02:31.4]} 23. f4 {[%clk 0:02:38.1]} 23... Nxh3+ {[%clk
0:02:28.6]} 24. Kh2 {[%clk 0:02:38.7]} 24... Qe6 {[%clk 0:02:20.6]} 25. Nb6
{[%clk 0:02:33.5]} 1-0

[Event "Early-Titled-Tuesday-Blitz-March-26-2024"]
[Site "Chess.com"]
[Date "2024.03.26"]
[Round "4"]
[White "babyking1205"]
[Black "agvania123"]
[Result "1-0"]
[WhiteElo "2619"]
[BlackElo "2415"]
[TimeControl "180+1"]
[EndTime "8:33:12 PDT"]
[Termination "babyking1205 won by resignation"]

1. e4 {[%clk 0:03:00.9]} 1... d5 {[%clk 0:02:58.2]} 2. exd5 {[%clk 0:03:00.8]}
2... Qxd5 {[%clk 0:02:59.1]} 3. Nc3 {[%clk 0:03:01.1]} 3... Qd8 {[%clk
0:02:59.3]} 4. d4 {[%clk 0:03:01.4]} 4... Nf6 {[%clk 0:02:59.4]} 5. Nf3 {[%clk
0:03:02.1]} 5... Bg4 {[%clk 0:02:58.6]} 6. h3 {[%clk 0:03:02.2]} 6... Bh5 {[%clk
0:02:56.8]} 7. g4 {[%clk 0:03:01.6]} 7... Bg6 {[%clk 0:02:56.9]} 8. Ne5 {[%clk
0:03:01.7]} 8... e6 {[%clk 0:02:56.2]} 9. Bg2 {[%clk 0:03:01.6]} 9... c6 {[%clk
0:02:55.9]} 10. f4 {[%clk 0:03:01.6]} 10... Nbd7 {[%clk 0:02:55]} 11. Be3 {[%clk
0:03:01.5]} 11... Nxe5 {[%clk 0:02:54.5]} 12. dxe5 {[%clk 0:03:01.4]} 12... Nd5
{[%clk 0:02:53.9]} 13. Nxd5 {[%clk 0:03:01.7]} 13... cxd5 {[%clk 0:02:54.1]} 14.
c4 {[%clk 0:03:01.6]} 14... Bb4+ {[%clk 0:02:52.9]} 15. Kf2 {[%clk 0:03:01.6]}
15... O-O {[%clk 0:02:29.8]} 16. cxd5 {[%clk 0:03:00.3]} 16... Qh4+ {[%clk
0:02:25.5]} 17. Kg1 {[%clk 0:02:59.3]} 17... exd5 {[%clk 0:02:19.5]} 18. f5
{[%clk 0:02:57.9]} 18... Rae8 {[%clk 0:02:07.5]} 19. Qd4 {[%clk 0:02:54.9]}
19... Ba5 {[%clk 0:02:04]} 20. Qxd5 {[%clk 0:02:51.1]} 20... Kh8 {[%clk
0:01:51.6]} 21. Qxa5 {[%clk 0:02:49.3]} 1-0

[Event "Early-Titled-Tuesday-Blitz-March-26-2024"]
[Site "Chess.com"]
[Date "2024.03.26"]
[Round "4"]
[White "LikeWater"]
[Black "Juicy_Fork"]
[Result "1-0"]
[WhiteElo "2713"]
[BlackElo "2516"]
[TimeControl "180+1"]
[EndTime "8:33:19 PDT"]
[Termination "LikeWater won by resignation"]

1. e4 {[%clk 0:02:59.9]} 1... e5 {[%clk 0:02:59.9]} 2. Nf3 {[%clk 0:02:59.2]}
2... Nc6 {[%clk 0:02:58.6]} 3. Nc3 {[%clk 0:02:56.4]} 3... Nf6 {[%clk
0:02:58.5]} 4. d4 {[%clk 0:02:56.8]} 4... exd4 {[%clk 0:02:58]} 5. Nxd4 {[%clk
0:02:57.7]} 5... Nxe4 {[%clk 0:02:58.1]} 6. Nxe4 {[%clk 0:02:51.8]} 6... Qe7
{[%clk 0:02:57.5]} 7. Bd3 {[%clk 0:02:51.2]} 7... d5 {[%clk 0:02:57.5]} 8. Nxc6
{[%clk 0:02:33.7]} 8... bxc6 {[%clk 0:02:49.4]} 9. O-O {[%clk 0:02:32.8]} 9...
dxe4 {[%clk 0:02:49.6]} 10. Bxe4 {[%clk 0:02:33.7]} 10... Qd7 {[%clk 0:02:43.7]}
11. Qf3 {[%clk 0:02:25.7]} 11... Bb7 {[%clk 0:02:39.7]} 12. Bg5 {[%clk
0:02:14.4]} 12... Bd6 {[%clk 0:02:31.3]} 13. Bf5 {[%clk 0:02:01.5]} 13... c5
{[%clk 0:02:13.9]} 14. Bxd7+ {[%clk 0:02:00.3]} 1-0

[Event "Early-Titled-Tuesday-Blitz-March-26-2024"]
[Site "Chess.com"]
[Date "2024.03.26"]
[Round "4"]
[White "BilicVladimir"]
[Black "ljuks68"]
[Result "0-1"]
[WhiteElo "2680"]
[BlackElo "2449"]
[TimeControl "180+1"]
[EndTime "8:33:55 PDT"]
[Termination "ljuks68 won by checkmate"]

1. e4 {[%clk 0:02:57.6]} 1... e6 {[%clk 0:03:00.1]} 2. d4 {[%clk 0:02:56.9]}
2... d5 {[%clk 0:03:00.7]} 3. Nd2 {[%clk 0:02:56.8]} 3... Nf6 {[%clk 0:03:00.8]}
4. e5 {[%clk 0:02:56.5]} 4... Nfd7 {[%clk 0:03:01.1]} 5. Bd3 {[%clk 0:02:56.9]}
5... c5 {[%clk 0:03:01.7]} 6. c3 {[%clk 0:02:57.5]} 6... Nc6 {[%clk 0:03:02.3]}
7. Ne2 {[%clk 0:02:57.5]} 7... cxd4 {[%clk 0:03:02.8]} 8. cxd4 {[%clk
0:02:58.4]} 8... f6 {[%clk 0:03:02.7]} 9. exf6 {[%clk 0:02:59.3]} 9... Qxf6
{[%clk 0:03:03]} 10. Nf3 {[%clk 0:02:59.5]} 10... h6 {[%clk 0:03:03.6]} 11. O-O
{[%clk 0:02:59.1]} 11... Bd6 {[%clk 0:03:04.1]} 12. Nc3 {[%clk 0:02:57.4]} 12...
O-O {[%clk 0:03:03.8]} 13. Bb1 {[%clk 0:02:54]} 13... Rd8 {[%clk 0:03:03.4]} 14.
a3 {[%clk 0:02:51.4]} 14... Nf8 {[%clk 0:03:03.4]} 15. Re1 {[%clk 0:02:50.2]}
15... Bd7 {[%clk 0:03:03.4]} 16. b4 {[%clk 0:02:39.8]} 16... a6 {[%clk 0:03:03]}
17. Bb2 {[%clk 0:02:39.1]} 17... Be8 {[%clk 0:03:02.6]} 18. h3 {[%clk
0:02:02.9]} 18... Bh5 {[%clk 0:02:57.8]} 19. g4 {[%clk 0:02:03]} 19... Bg6
{[%clk 0:02:57.8]} 20. Bxg6 {[%clk 0:02:01.6]} 20... Nxg6 {[%clk 0:02:56.6]} 21.
Bc1 {[%clk 0:01:32.8]} 21... Rf8 {[%clk 0:02:49.6]} 22. Kg2 {[%clk 0:01:28.7]}
22... Nh4+ {[%clk 0:02:38.7]} 23. Nxh4 {[%clk 0:01:19.6]} 23... Qxf2+ {[%clk
0:02:37.9]} 24. Kh1 {[%clk 0:01:19.7]} 24... Qh2# {[%clk 0:02:38.1]} 0-1

[Event "Early-Titled-Tuesday-Blitz-March-26-2024"]
[Site "Chess.com"]
[Date "2024.03.26"]
[Round "4"]
[White "carloseduar100"]
[Black "wild3000"]
[Result "0-1"]
[WhiteElo "2202"]
[BlackElo "2458"]
[TimeControl "180+1"]
[EndTime "8:33:55 PDT"]
[Termination "wild3000 won by resignation"]

1. d4 {[%clk 0:03:00.5]} 1... Nf6 {[%clk 0:02:59.9]} 2. Bg5 {[%clk 0:03:00.4]}
2... g6 {[%clk 0:02:59.4]} 3. Bxf6 {[%clk 0:03:00.2]} 3... exf6 {[%clk
0:03:00.3]} 4. g3 {[%clk 0:03:01]} 4... Bg7 {[%clk 0:03:00.4]} 5. Bg2 {[%clk
0:03:01.9]} 5... d5 {[%clk 0:03:00.8]} 6. e3 {[%clk 0:03:02.4]} 6... O-O {[%clk
0:03:00.5]} 7. Ne2 {[%clk 0:03:02.9]} 7... c6 {[%clk 0:02:58.6]} 8. O-O {[%clk
0:03:03.2]} 8... Nd7 {[%clk 0:02:59]} 9. Nd2 {[%clk 0:03:03.8]} 9... Nb6 {[%clk
0:02:57.2]} 10. c4 {[%clk 0:02:56.2]} 10... dxc4 {[%clk 0:02:56.5]} 11. Qc2
{[%clk 0:02:56.2]} 11... Be6 {[%clk 0:02:56.3]} 12. e4 {[%clk 0:02:55.7]} 12...
f5 {[%clk 0:02:52]} 13. Rad1 {[%clk 0:02:49.7]} 13... fxe4 {[%clk 0:02:51.5]}
14. Bxe4 {[%clk 0:02:49.6]} 14... Bh3 {[%clk 0:02:46.9]} 15. Rfe1 {[%clk
0:02:48.4]} 15... Re8 {[%clk 0:02:46.9]} 16. Nf4 {[%clk 0:02:44.9]} 16... Bg4
{[%clk 0:02:46.6]} 17. f3 {[%clk 0:02:36.5]} 17... Qxd4+ {[%clk 0:02:46.1]} 18.
Kg2 {[%clk 0:02:36.8]} 18... Be6 {[%clk 0:02:36.7]} 19. Nxe6 {[%clk 0:02:34.6]}
19... Rxe6 {[%clk 0:02:35.9]} 20. Nf1 {[%clk 0:02:30]} 20... Qxb2 {[%clk
0:02:32.5]} 21. Qxb2 {[%clk 0:02:25.8]} 21... Bxb2 {[%clk 0:02:33.4]} 22. Ne3
{[%clk 0:02:24.8]} 22... f5 {[%clk 0:02:25]} 23. Bb1 {[%clk 0:02:24.2]} 23...
Rae8 {[%clk 0:02:24.6]} 24. Nc2 {[%clk 0:02:24.7]} 24... Rxe1 {[%clk 0:02:23.4]}
25. Nxe1 {[%clk 0:02:25.6]} 25... Re2+ {[%clk 0:02:20.6]} 26. Kf1 {[%clk
0:02:24.3]} 26... Rxh2 {[%clk 0:02:20.2]} 27. Ng2 {[%clk 0:02:24.5]} 27... Rh1+
{[%clk 0:02:18.8]} 28. Ke2 {[%clk 0:02:25.2]} 28... Rxd1 {[%clk 0:02:18.4]} 29.
Kxd1 {[%clk 0:02:26.1]} 29... Nd5 {[%clk 0:02:18.3]} 30. Kc2 {[%clk 0:02:25.7]}
30... Be5 {[%clk 0:02:14.1]} 31. f4 {[%clk 0:02:25.2]} 31... Bf6 {[%clk
0:02:13.9]} 32. Kd2 {[%clk 0:02:25.4]} 32... b5 {[%clk 0:02:13.8]} 33. Ne1
{[%clk 0:02:20.6]} 33... Bc3+ {[%clk 0:02:12.6]} 0-1

[Event "Early-Titled-Tuesday-Blitz-March-26-2024"]
[Site "Chess.com"]
[Date "2024.03.26"]
[Round "4"]
[White "CarlosjPineror"]
[Black "NewYearGirl"]
[Result "1-0"]
[WhiteElo "2757"]
[BlackElo "2436"]
[TimeControl "180+1"]
[EndTime "8:34:25 PDT"]
[Termination "CarlosjPineror won by resignation"]

1. e4 {[%clk 0:03:00.9]} 1... c5 {[%clk 0:03:00.1]} 2. Nf3 {[%clk 0:03:00.5]}
2... d6 {[%clk 0:03:00.9]} 3. d4 {[%clk 0:03:00.2]} 3... cxd4 {[%clk 0:03:01.8]}
4. Nxd4 {[%clk 0:03:01]} 4... Nf6 {[%clk 0:03:02.5]} 5. Nc3 {[%clk 0:03:01.7]}
5... g6 {[%clk 0:03:03.2]} 6. Be3 {[%clk 0:03:01.9]} 6... Bg7 {[%clk 0:03:03.9]}
7. f3 {[%clk 0:03:02.6]} 7... O-O {[%clk 0:03:04.2]} 8. Qd2 {[%clk 0:03:03.3]}
8... Nc6 {[%clk 0:03:04.6]} 9. O-O-O {[%clk 0:03:04]} 9... Bd7 {[%clk
0:03:05.2]} 10. h4 {[%clk 0:02:57.8]} 10... Ne5 {[%clk 0:02:59.7]} 11. g4 {[%clk
0:02:51.8]} 11... Rc8 {[%clk 0:02:57.1]} 12. h5 {[%clk 0:02:49.2]} 12... Nc4
{[%clk 0:02:55.3]} 13. Bxc4 {[%clk 0:02:48.4]} 13... Rxc4 {[%clk 0:02:56.2]} 14.
Nde2 {[%clk 0:02:32.5]} 14... Qa5 {[%clk 0:02:41.4]} 15. Bh6 {[%clk 0:02:28.6]}
15... Bxh6 {[%clk 0:02:34]} 16. Qxh6 {[%clk 0:02:27.7]} 16... g5 {[%clk
0:02:34.5]} 17. Nd5 {[%clk 0:01:42.6]} 17... Qxa2 {[%clk 0:01:37.4]} 18. Nxe7+
{[%clk 0:01:38.9]} 1-0

[Event "Early-Titled-Tuesday-Blitz-March-26-2024"]
[Site "Chess.com"]
[Date "2024.03.26"]
[Round "4"]
[White "aljado"]
[Black "ckgchess"]
[Result "0-1"]
[WhiteElo "2164"]
[BlackElo "2918"]
[TimeControl "180+1"]
[EndTime "8:34:42 PDT"]
[Termination "ckgchess won by resignation"]

1. e4 {[%clk 0:03:00.9]} 1... e5 {[%clk 0:02:58.9]} 2. Nf3 {[%clk 0:03:00.3]}
2... Nf6 {[%clk 0:02:59.6]} 3. Nxe5 {[%clk 0:01:49]} 3... d5 {[%clk 0:02:28.9]}
4. exd5 {[%clk 0:01:43.9]} 4... Qxd5 {[%clk 0:02:29.8]} 5. d4 {[%clk 0:01:41]}
5... Nc6 {[%clk 0:02:29.4]} 6. Bc4 {[%clk 0:01:33.9]} 6... Qxg2 {[%clk
0:02:24.5]} 7. Qf3 {[%clk 0:01:26.8]} 7... Qxf3 {[%clk 0:02:19.7]} 8. Nxf3
{[%clk 0:01:26.5]} 8... Bd6 {[%clk 0:02:18.8]} 9. Bg5 {[%clk 0:01:24.5]} 9...
O-O {[%clk 0:02:12.8]} 10. Nc3 {[%clk 0:01:23.5]} 10... Re8+ {[%clk 0:02:13]}
11. Kd2 {[%clk 0:01:23.3]} 11... Bg4 {[%clk 0:02:09.4]} 12. Bxf6 {[%clk
0:01:11.8]} 12... Bf4+ {[%clk 0:02:06.3]} 0-1

[Event "Early-Titled-Tuesday-Blitz-March-26-2024"]
[Site "Chess.com"]
[Date "2024.03.26"]
[Round "4"]
[White "tetrix83"]
[Black "lagunanivaria"]
[Result "1-0"]
[WhiteElo "2627"]
[BlackElo "2458"]
[TimeControl "180+1"]
[EndTime "8:34:59 PDT"]
[Termination "tetrix83 won by resignation"]

1. e4 {[%clk 0:02:56]} 1... c6 {[%clk 0:02:58]} 2. d4 {[%clk 0:02:55.3]} 2... d5
{[%clk 0:02:54.7]} 3. exd5 {[%clk 0:02:56.2]} 3... cxd5 {[%clk 0:02:55.4]} 4.
Bd3 {[%clk 0:02:56.2]} 4... Nc6 {[%clk 0:02:55.8]} 5. c3 {[%clk 0:02:56.4]} 5...
Nf6 {[%clk 0:02:53.7]} 6. h3 {[%clk 0:02:56.7]} 6... g6 {[%clk 0:02:53.6]} 7.
Nf3 {[%clk 0:02:56.5]} 7... Bf5 {[%clk 0:02:53.4]} 8. Be2 {[%clk 0:02:56.6]}
8... Bg7 {[%clk 0:02:51.6]} 9. O-O {[%clk 0:02:56.2]} 9... O-O {[%clk
0:02:49.7]} 10. Bf4 {[%clk 0:02:55.1]} 10... Re8 {[%clk 0:02:48.1]} 11. Re1
{[%clk 0:02:53.7]} 11... Ne4 {[%clk 0:02:48.3]} 12. Nh4 {[%clk 0:02:41.6]} 12...
Bd7 {[%clk 0:02:44.5]} 13. Nf3 {[%clk 0:02:31.9]} 13... Bf5 {[%clk 0:02:44]} 14.
Nbd2 {[%clk 0:02:27]} 14... Nxd2 {[%clk 0:02:38.8]} 15. Qxd2 {[%clk 0:02:25.8]}
15... Be4 {[%clk 0:02:38.9]} 16. Ng5 {[%clk 0:02:24.8]} 16... Bf5 {[%clk
0:02:36]} 17. g4 {[%clk 0:02:24.9]} 17... Bd7 {[%clk 0:02:35.3]} 18. Nf3 {[%clk
0:02:21.6]} 18... a6 {[%clk 0:02:08.6]} 19. Bd3 {[%clk 0:02:18.4]} 19... b5
{[%clk 0:02:07.3]} 20. Re2 {[%clk 0:02:16.5]} 20... Qb6 {[%clk 0:02:05]} 21. a3
{[%clk 0:02:09.9]} 21... a5 {[%clk 0:02:04.7]} 22. Ne5 {[%clk 0:02:05.9]} 22...
Nxe5 {[%clk 0:02:01.2]} 23. Bxe5 {[%clk 0:02:06.8]} 23... Bxe5 {[%clk
0:01:56.6]} 24. Rxe5 {[%clk 0:02:06.7]} 24... Rab8 {[%clk 0:01:51.9]} 25. Rae1
{[%clk 0:02:04.3]} 25... Qd6 {[%clk 0:01:46.1]} 26. Qh6 {[%clk 0:02:03.8]} 26...
b4 {[%clk 0:01:43.6]} 27. Rh5 {[%clk 0:02:03.6]} 27... e6 {[%clk 0:01:35.5]} 28.
Qxh7+ {[%clk 0:02:01.9]} 28... Kf8 {[%clk 0:01:35.9]} 29. Bxg6 {[%clk
0:01:52.7]} 29... Qf4 {[%clk 0:01:23.6]} 30. Rf5 {[%clk 0:01:49.1]} 1-0

[Event "Early-Titled-Tuesday-Blitz-March-26-2024"]
[Site "Chess.com"]
[Date "2024.03.26"]
[Round "4"]
[White "WiktoriaPOL"]
[Black "Davidalhesa2007"]
[Result "1-0"]
[WhiteElo "2270"]
[BlackElo "1864"]
[TimeControl "180+1"]
[EndTime "8:35:07 PDT"]
[Termination "WiktoriaPOL won by checkmate"]

1. c4 {[%clk 0:02:57.5]} 1... Nf6 {[%clk 0:02:58.1]} 2. Nc3 {[%clk 0:02:57.3]}
2... e6 {[%clk 0:02:58.2]} 3. e4 {[%clk 0:02:57.3]} 3... d5 {[%clk 0:02:57.8]}
4. e5 {[%clk 0:02:57.6]} 4... d4 {[%clk 0:02:34.8]} 5. exf6 {[%clk 0:02:55.4]}
5... dxc3 {[%clk 0:02:34.8]} 6. bxc3 {[%clk 0:02:53.5]} 6... Qxf6 {[%clk
0:02:33.5]} 7. d4 {[%clk 0:02:53.5]} 7... h6 {[%clk 0:02:29.9]} 8. Nf3 {[%clk
0:02:52.4]} 8... Bd7 {[%clk 0:02:03.1]} 9. Bd3 {[%clk 0:02:47.9]} 9... Bd6
{[%clk 0:02:00.1]} 10. O-O {[%clk 0:02:39.9]} 10... c6 {[%clk 0:02:00.1]} 11.
Re1 {[%clk 0:02:38.3]} 11... O-O {[%clk 0:01:56]} 12. Bc2 {[%clk 0:02:34.7]}
12... b5 {[%clk 0:01:48.1]} 13. Qd3 {[%clk 0:02:32.3]} 13... g6 {[%clk
0:01:39.5]} 14. Bxh6 {[%clk 0:02:30.3]} 14... Re8 {[%clk 0:01:37.1]} 15. Bg5
{[%clk 0:02:28.9]} 15... Qg7 {[%clk 0:01:36.6]} 16. cxb5 {[%clk 0:02:24.7]}
16... cxb5 {[%clk 0:01:36.2]} 17. Nd2 {[%clk 0:02:17.7]} 17... Nc6 {[%clk
0:01:20]} 18. Ne4 {[%clk 0:02:16.5]} 18... Be7 {[%clk 0:01:14.2]} 19. Qg3 {[%clk
0:02:14.4]} 19... Bxg5 {[%clk 0:01:12.5]} 20. Qxg5 {[%clk 0:02:14.2]} 20... Kf8
{[%clk 0:00:57.1]} 21. Nf6 {[%clk 0:02:09.2]} 21... Red8 {[%clk 0:00:56.5]} 22.
Be4 {[%clk 0:02:02.4]} 22... Rac8 {[%clk 0:00:54.9]} 23. Bxc6 {[%clk 0:01:55.3]}
23... Bxc6 {[%clk 0:00:55.8]} 24. Qc5+ {[%clk 0:01:54.3]} 24... Rd6 {[%clk
0:00:50.1]} 25. Qxd6# {[%clk 0:01:54.3]} 1-0